[Event "Turkish Youth Championship 2024"]
[Site "Samsun"]
[Date "2024.05.21"]
[Round "5"]
[White "Uzdemir, Ali Poyraz"]
[Black "Ozgun, Yigit Deniz"]
[Result "1-0"]
[ECO "B55"]
[WhiteElo "1898"]
[BlackElo "1917"]
[Annotator "RC"]
[PlyCount "101"]
[EventDate "2024.05.18"]
[EventType "swiss"]
[EventCountry "TUR"]
[SourceTitle "playchess.com"]
[Source "ChessBase"]
[SourceQuality "1"]
[TimeControl "5400+30"]

1. e4 {[%emt 0:01:00]} c5 {[%emt 0:01:00]} 2. Nf3 {[%emt 0:00:00]} d6 {[%emt 0:00:30]} 3. d4 {[%emt 0:00:00]} cxd4 {[%emt 0:00:30]} 4. Nxd4 {[%emt 0:00:30]} Nf6 {[%emt 0:00:00]} 5. f3 {[%emt 0:00:00]} Nc6 {[%emt 0:00:00]} 6. c4 {[%emt 0:01:00]} e6 {[%emt 0:00:30]} 7. Nc3 {[%emt 0:00:30]} Be7 {[%emt 0:00:00]} 8. Be3 {[%emt 0:00:00]} O-O {[%emt 0:01:00]} 9. Be2 {[%emt 0:00:00]} d5 {[%emt 0:00:30]} 10. Nxc6 {[%emt 0:02:30]} bxc6 {[%emt 0:01:30]} 11. exd5 {[%emt 0:00:30]} cxd5 {[%emt 0:02:30]} 12. cxd5 {[%emt 0:00:30]} exd5 {[%emt 0:00:30]} 13. O-O {[%emt 0:00:30]} Be6 {[%emt 0:05:30]} 14. Qd2 {[%emt 0:07:30]} a5 {[%emt 0:07:30]} 15. Rac1 {[%emt 0:03:30]} Bd6 {[%emt 0:09:30]} 16. Nb5 {[%emt 0:03:30]} Bb8 {[%emt 0:01:30]} 17. Rfd1 {[%emt 0:05:30]} Re8 {[%emt 0:00:30]} 18. Rc3 {[%emt 0:15:30]} Bd7 {[%emt 0:05:30]} 19. Rdc1 {[%emt 0:08:30]} Bxb5 {[%emt 0:09:30]} 20. Bxb5 {[%emt 0:00:30]} Rxe3 {[%emt 0:00:30]} 21. Qxe3 {[%emt 0:09:30]} d4 {[%emt 0:03:30]} 22. Qd3 {[%emt 0:01:30]} Bxh2+ {[%emt 0:10:30]} 23. Kxh2 {[%emt 0:00:00]} dxc3 {[%emt 0:00:30]} 24. Qxd8+ {[%emt 0:01:00]} Rxd8 {[%emt 0:00:00]} 25. Rxc3 {[%emt 0:00:00]} g5 {[%emt 0:04:00]} 26. Rc7 {[%emt 0:01:00]} Nd5 {[%emt 0:00:30]} 27. Rc5 {[%emt 0:00:30]} h6 {[%emt 0:00:30]} 28. Bc6 {[%emt 0:07:30]} Nf4 {[%emt 0:01:30]} 29. Rxa5 {[%emt 0:03:30]} Rd2 {[%emt 0:00:30]} 30. b4 {[%emt 0:00:30]} Rxg2+ {[%emt 0:03:30]} 31. Kh1 {[%emt 0:00:00]} Rb2 {[%emt 0:00:30]} 32. b5 {[%emt 0:00:00]} Kg7 {[%emt 0:02:30]} 33. Ra6 {[%emt 0:04:30]} h5 {[%emt 0:00:30]} 34. b6 {[%emt 0:04:30]} h4 {[%emt 0:01:30]} 35. b7 {[%emt 0:01:30]} Nh5 {[%emt 0:03:30]} 36. Ra5 {[%emt 0:00:30]} Rb1+ {[%emt 0:08:02]} 37. Kh2 {[%emt 0:01:30]} Rb2+ {[%emt 0:01:38]} 38. Kg1 {[%emt 0:00:30]} Rb1+ {[%emt 0:01:45]} 39. Kf2 {[%emt 0:00:42]} Rb2+ {[%emt 0:00:37]} 40. Ke3 {[%emt 0:00:40]} h3 {[%emt 0:01:57]} 41. Rxg5+ {[%emt 0:01:11]} Kh6 {[%emt 0:00:16]} 42. Rg4 {[%emt 0:00:46]} f5 {[%emt 0:00:14]} 43. Rh4 {[%emt 0:00:27]} f4+ {[%emt 0:01:48]} 44. Kd3 {[%emt 0:00:20]} h2 {[%emt 0:03:02]} 45. Rxh2 {[%emt 0:00:27]} Rb6 {[%emt 0:00:16]} 46. Kd4 {[%emt 0:00:27]} Kg5 {[%emt 0:00:10]} 47. Kc5 {[%emt 0:00:34]} Rb1 {[%emt 0:00:08]} 48. Bb5 {[%emt 0:00:00]} Nf6 {[%emt 0:00:02]} 49. Rd2 {[%emt 0:00:52]} Ne8 {[%emt 0:00:24]} 50. b8=Q {[%emt 0:00:42]} Rc1+ {[%emt 0:00:05]} 51. Kb6 1-0

[Event "Turkish Youth Championship 2024"]
[Site "Samsun"]
[Date "2024.05.21"]
[Round "5"]
[White "Selvi, Kaan"]
[Black "Zengin, Ovgu"]
[Result "1-0"]
[ECO "B47"]
[WhiteElo "1881"]
[BlackElo "1664"]
[Annotator "NA RC"]
[PlyCount "173"]
[EventDate "2024.05.18"]
[EventType "swiss"]
[EventCountry "TUR"]
[SourceTitle "playchess.com"]
[Source "ChessBase"]
[SourceQuality "1"]
[TimeControl "5400+30"]

1. e4 {[%emt 0:01:00]} c5 {[%emt 0:01:00]} 2. Nf3 {[%emt 0:00:30]} e6 {[%emt 0:00:30]} 3. d4 {[%emt 0:00:00]} cxd4 {[%emt 0:00:00]} 4. Nxd4 {[%emt 0:00:00]} Nc6 {[%emt 0:00:00]} 5. Nc3 {[%emt 0:00:00]} Qc7 {[%emt 0:00:00]} 6. g3 {[%emt 0:03:00]} a6 {[%emt 0:00:00]} 7. Bg2 {[%emt 0:00:30]} Nf6 {[%emt 0:00:30]} 8. O-O {[%emt 0:00:30]} Nxd4 {[%emt 0:00:30]} 9. Qxd4 {[%emt 0:00:30]} Bc5 {[%emt 0:00:30]} 10. Qd1 {[%emt 0:01:30]} d6 {[%emt 0:00:30]} 11. Bf4 {[%emt 0:12:30]} h6 {[%emt 0:00:30]} 12. Na4 {[%emt 0:01:30]} e5 {[%emt 0:00:00]} 13. Nxc5 {[%emt 0:05:30]} exf4 {[%emt 0:00:00]} 14. Nd3 {[%emt 0:01:30]} fxg3 {[%emt 0:01:30]} 15. hxg3 {[%emt 0:01:30]} O-O {[%emt 0:00:30]} 16. Nf4 {[%emt 0:00:30]} Qb6 {[%emt 0:01:30]} 17. b3 {[%emt 0:04:30]} Bd7 {[%emt 0:02:30]} 18. c4 {[%emt 0:01:30]} Qc5 {[%emt 0:05:30]} 19. Qd3 {[%emt 0:04:30]} Rfe8 {[%emt 0:02:30]} 20. Rad1 {[%emt 0:14:30]} Bc6 {[%emt 0:05:30]} 21. Rfe1 {[%emt 0:04:30]} Rad8 {[%emt 0:00:30]} 22. Qd4 {[%emt 0:00:30]} Qa5 {[%emt 0:02:30]} 23. Re2 {[%emt 0:02:30]} Rd7 {[%emt 0:09:30]} 24. Bh3 {[%emt 0:04:30]} Rde7 {[%emt 0:10:30]} 25. f3 {[%emt 0:00:30]} Bd7 {[%emt 0:08:30]} 26. Bxd7 {[%emt 0:02:30]} Rxd7 {[%emt 0:00:30]} 27. Nd5 {[%emt 0:01:30]} Nxd5 {[%emt 0:04:30]} 28. Qxd5 {[%emt 0:00:30]} Qd8 {[%emt 0:00:00]} 29. f4 {[%emt 0:05:30]} Qf6 {[%emt 0:02:00]} 30. Kg2 {[%emt 0:02:30]} Qg6 {[%emt 0:07:30]} 31. Kf3 {[%emt 0:06:16]} Rde7 {[%emt 0:04:30]} 32. g4 {[%emt 0:03:13]} Qf6 {[%emt 0:08:30]} 33. Kg3 {[%emt 0:00:15]} Re6 {[%emt 0:04:30]} 34. f5 {[%emt 0:04:13]} Re5 {[%emt 0:00:30]} 35. Qxd6 {[%emt 0:00:46]} Qg5 {[%emt 0:00:30]} 36. Qd2 {[%emt 0:00:15]} Qf6 {[%emt 0:01:54]} 37. Qd4 {[%emt 0:01:42]} Qg5 {[%emt 0:01:20]} 38. Qe3 {[%emt 0:00:30]} Rxf5 {[%emt 0:01:52]} 39. Qxg5 {[%emt 0:01:02]} Rxg5 {[%emt 0:00:02]} 40. Kf4 {[%emt 0:00:04]} b5 {[%emt 0:01:45]} 41. e5 {[%emt 0:03:41]} Rc8 {[%emt 0:02:53]} 42. cxb5 {[%emt 0:00:10]} axb5 {[%emt 0:00:10]} 43. Rd5 {[%emt 0:00:19]} Rb8 {[%emt 0:01:42]} 44. Red2 {[%emt 0:00:52]} Rb6 {[%emt 0:00:45]} 45. Rd6 {[%emt 0:01:10]} Rb7 {[%emt 0:00:28]} 46. Rd8+ {[%emt 0:00:16]} Kh7 {[%emt 0:00:35]} 47. R8d7 {[%emt 0:00:02]} Rb6 {[%emt 0:01:15]} 48. Rxf7 {[%emt 0:00:51]} Rbg6 {[%emt 0:00:08]} 49. Rg2 {[%emt 0:00:51]} Rb6 {[%emt 0:02:28]} 50. Rf5 {[%emt 0:01:30]} Rgg6 {[%emt 0:00:18]} 51. g5 {[%emt 0:00:14]} b4 {[%emt 0:01:35]} 52. Rc2 {[%emt 0:01:36]} Rb5 {[%emt 0:01:38]} 53. gxh6 {[%emt 0:00:41]} Rxh6 {[%emt 0:00:23]} 54. e6 {[%emt 0:00:30]} Rh4+ {[%emt 0:01:27]} 55. Kg5 {[%emt 0:00:29]} Rh5+ {[%emt 0:01:03]} 56. Kxh5 {[%emt 0:00:03]} Rxf5+ {[%emt 0:00:10]} 57. Kg4 {[%emt 0:00:01]} Re5 {[%emt 0:00:00]} 58. Rc6 {[%emt 0:00:26]} Kg6 {[%emt 0:00:10]} 59. Kf4 {[%emt 0:00:33]} Re2 {[%emt 0:00:48]} 60. Rb6 {[%emt 0:00:27]} Rxa2 {[%emt 0:01:49]} 61. Ke5 {[%emt 0:00:01]} Re2+ {[%emt 0:00:00]} 62. Kd6 {[%emt 0:00:28]} Kf5 {[%emt 0:01:35]} 63. Kd7 {[%emt 0:00:50]} Kf6 {[%emt 0:00:42]} 64. Rd6 {[%emt 0:00:26]} Re3 {[%emt 0:00:45]} 65. Rd2 {[%emt 0:00:58]} g5 {[%emt 0:01:25]} 66. Rf2+ {[%emt 0:01:24]} Kg6 {[%emt 0:00:07]} 67. e7 {[%emt 0:01:05]} Rd3+ {[%emt 0:00:11]} 68. Ke8 {[%emt 0:00:55]} Kg7 {[%emt 0:00:10]} 69. Rf5 {[%emt 0:00:41]} Re3 {[%emt 0:00:27]} 70. Rf7+ {[%emt 0:02:11]} Kg8 {[%emt 0:00:05]} 71. Rf5 {[%emt 0:00:02]} Kg7 {[%emt 0:00:05]} 72. Rb5 {[%emt 0:00:09]} Kf6 {[%emt 0:02:30]} 73. Rb6+ {[%emt 0:00:04]} Kg7 {[%emt 0:00:41]} 74. Rxb4 {[%emt 0:00:02]} Kf6 {[%emt 0:00:00]} 75. Rb6+ {[%emt 0:00:30]} Kg7 {[%emt 0:00:00]} 76. Rb7 {[%emt 0:00:53]} Rd3 {[%emt 0:00:42]} 77. b4 {[%emt 0:00:47]} g4 {[%emt 0:00:24]} 78. Rd7 {[%emt 0:00:12]} Ra3 {[%emt 0:00:11]} 79. Rd4 {[%emt 0:00:11]} Ra8+ {[%emt 0:00:35]} 80. Kd7 {[%emt 0:00:08]} Ra7+ {[%emt 0:01:09]} 81. Ke6 {[%emt 0:00:03]} Ra6+ {[%emt 0:00:00]} 82. Rd6 {[%emt 0:00:17]} Ra8 {[%emt 0:00:44]} 83. b5 {[%emt 0:00:05]} Rb8 {[%emt 0:00:02]} 84. Rd8 {[%emt 0:01:58]} Rb6+ {[%emt 0:00:10]} 85. Kd7 {[%emt 0:00:41]} Rb7+ {[%emt 0:00:08]} 86. Kd6 {[%emt 0:00:00]} Rb6+ {[%emt 0:00:50]} 87. Kc7 {[%emt 0:00:00]} 1-0

[Event "Turkish Youth Championship 2024"]
[Site "Samsun"]
[Date "2024.05.21"]
[Round "5"]
[White "Gokturk, Murat Kutay"]
[Black "Konyar, Enver"]
[Result "1-0"]
[ECO "B15"]
[WhiteElo "1862"]
[BlackElo "1606"]
[Annotator "NA RC"]
[PlyCount "89"]
[EventDate "2024.05.18"]
[EventType "swiss"]
[EventCountry "TUR"]
[SourceTitle "playchess.com"]
[Source "ChessBase"]
[SourceQuality "1"]
[TimeControl "5400+30"]

1. e4 {[%emt 0:01:00]} c6 {[%emt 0:01:00]} 2. d4 {[%emt 0:00:30]} d5 {[%emt 0:00:30]} 3. Nc3 {[%emt 0:00:30]} dxe4 {[%emt 0:00:00]} 4. Nxe4 {[%emt 0:00:00]} Nf6 {[%emt 0:00:00]} 5. Nxf6+ {[%emt 0:00:00]} exf6 {[%emt 0:00:00]} 6. Be3 {[%emt 0:00:00]} Bd6 {[%emt 0:00:00]} 7. Bd3 {[%emt 0:00:00]} O-O {[%emt 0:02:30]} 8. Ne2 {[%emt 0:00:00]} Re8 {[%emt 0:00:00]} 9. O-O {[%emt 0:01:00]} Nd7 {[%emt 0:00:00]} 10. Qd2 {[%emt 0:00:30]} Nf8 {[%emt 0:00:30]} 11. c4 {[%emt 0:00:00]} Be6 {[%emt 0:01:30]} 12. Ng3 {[%emt 0:02:00]} Rc8 {[%emt 0:09:30]} 13. Rad1 {[%emt 0:05:30]} Bb8 {[%emt 0:03:30]} 14. f4 {[%emt 0:12:30]} Rc7 {[%emt 0:18:30]} 15. f5 {[%emt 0:06:30]} Bc8 {[%emt 0:02:30]} 16. Bf4 {[%emt 0:15:30]} Qxd4+ {[%emt 0:04:30]} 17. Qf2 {[%emt 0:01:30]} Qd8 {[%emt 0:02:30]} 18. Nh5 {[%emt 0:06:30]} Bd7 {[%emt 0:12:30]} 19. Qg3 {[%emt 0:08:30]} g6 {[%emt 0:03:30]} 20. fxg6 {[%emt 0:01:30]} hxg6 {[%emt 0:00:30]} 21. Bxc7 {[%emt 0:06:30]} Bxc7 {[%emt 0:00:30]} 22. Nxf6+ {[%emt 0:01:30]} Qxf6 {[%emt 0:00:30]} 23. Qxc7 {[%emt 0:02:30]} Qxb2 {[%emt 0:01:30]} 24. Qf4 {[%emt 0:06:30]} Be6 {[%emt 0:00:00]} 25. Rde1 {[%emt 0:01:30]} Rd8 {[%emt 0:03:00]} 26. Re3 {[%emt 0:07:01]} Rd4 {[%emt 0:04:30]} 27. Qe5 {[%emt 0:09:50]} Qb6 {[%emt 0:01:30]} 28. Kh1 {[%emt 0:01:15]} Nd7 {[%emt 0:00:30]} 29. Qg5 {[%emt 0:01:07]} Rg4 {[%emt 0:00:30]} 30. Qh6 {[%emt 0:01:10]} Qb2 {[%emt 0:00:00]} 31. Qh3 {[%emt 0:01:12]} Rf4 {[%emt 0:00:00]} 32. Rxe6 {[%emt 0:00:51]} Rxf1+ {[%emt 0:01:30]} 33. Bxf1 {[%emt 0:00:00]} fxe6 {[%emt 0:00:30]} 34. Qxe6+ {[%emt 0:00:00]} Kf8 {[%emt 0:00:30]} 35. Qxd7 {[%emt 0:00:00]} Qa1 {[%emt 0:00:30]} 36. Kg1 {[%emt 0:01:19]} Qxa2 {[%emt 0:00:30]} 37. Qxb7 {[%emt 0:00:30]} a5 {[%emt 0:00:30]} 38. Qxc6 {[%emt 0:00:19]} a4 {[%emt 0:00:00]} 39. Qf6+ {[%emt 0:00:47]} Ke8 {[%emt 0:00:00]} 40. c5 {[%emt 0:00:11]} Kd7 {[%emt 0:00:30]} 41. Bb5+ {[%emt 0:00:23]} Kc7 {[%emt 0:00:30]} 42. Qd6+ {[%emt 0:00:35]} Kb7 {[%emt 0:00:30]} 43. Bc6+ {[%emt 0:00:00]} Ka7 {[%emt 0:00:00]} 44. Qc7+ {[%emt 0:00:11]} Ka6 {[%emt 0:00:00]} 45. Qb6# {[%emt 0:00:16]} 1-0

[Event "Turkish Youth Championship 2024"]
[Site "Samsun"]
[Date "2024.05.21"]
[Round "5"]
[White "Gulbas, Isa"]
[Black "Ergin, Hasan Kaan"]
[Result "1/2-1/2"]
[ECO "C45"]
[WhiteElo "1813"]
[BlackElo "1632"]
[Annotator "NA RC"]
[PlyCount "102"]
[EventDate "2024.05.18"]
[EventType "swiss"]
[EventCountry "TUR"]
[SourceTitle "playchess.com"]
[Source "ChessBase"]
[SourceQuality "1"]
[TimeControl "5400+30"]

1. e4 {[%emt 0:01:00]} e5 {[%emt 0:01:00]} 2. Nf3 {[%emt 0:00:30]} Nc6 {[%emt 0:00:00]} 3. d4 {[%emt 0:00:30]} exd4 {[%emt 0:00:00]} 4. Nxd4 {[%emt 0:00:00]} Nf6 {[%emt 0:00:30]} 5. Nxc6 {[%emt 0:00:00]} bxc6 {[%emt 0:00:30]} 6. e5 {[%emt 0:00:30]} Qe7 {[%emt 0:00:30]} 7. Qe2 {[%emt 0:00:00]} Nd5 {[%emt 0:00:30]} 8. c4 {[%emt 0:00:00]} Ba6 {[%emt 0:05:30]} 9. b3 {[%emt 0:00:00]} g6 {[%emt 0:03:30]} 10. f4 {[%emt 0:25:00]} Bg7 {[%emt 0:08:30]} 11. Qf2 {[%emt 0:00:30]} Nb4 {[%emt 0:04:30]} 12. Bb2 {[%emt 0:33:30]} c5 {[%emt 0:09:30]} 13. Nc3 {[%emt 0:01:30]} d6 {[%emt 0:03:30]} 14. a3 {[%emt 0:09:30]} Nc6 {[%emt 0:01:30]} 15. Nd5 {[%emt 0:01:30]} Qd7 {[%emt 0:00:30]} 16. Nxc7+ {[%emt 0:05:59]} Qxc7 {[%emt 0:01:30]} 17. exd6 {[%emt 0:00:01]} Qa5+ {[%emt 0:01:30]} 18. b4 {[%emt 0:04:39]} Bxb2 {[%emt 0:02:30]} 19. Qxb2 {[%emt 0:06:09]} cxb4 {[%emt 0:00:30]} 20. Qxh8+ {[%emt 0:02:47]} Kd7 {[%emt 0:00:30]} 21. Qxa8 {[%emt 0:01:47]} b3+ {[%emt 0:02:30]} 22. Kd1 {[%emt 0:02:23]} Qf5 {[%emt 0:07:30]} 23. Qh8 {[%emt 0:03:34]} Qc2+ {[%emt 0:03:30]} 24. Ke1 {[%emt 0:00:01]} b2 {[%emt 0:00:00]} 25. Be2 {[%emt 0:01:06]} b1=Q+ {[%emt 0:00:00]} 26. Rxb1 {[%emt 0:00:01]} Qxb1+ {[%emt 0:00:30]} 27. Kf2 {[%emt 0:00:01]} Qxh1 {[%emt 0:00:30]} 28. Qxh7 {[%emt 0:00:39]} Nd8 {[%emt 0:03:30]} 29. Bf1 {[%emt 0:01:19]} Kxd6 {[%emt 0:02:30]} 30. Qh8 {[%emt 0:00:30]} Kc7 {[%emt 0:02:30]} 31. Qe5+ {[%emt 0:00:21]} Kc8 {[%emt 0:00:30]} 32. Qc5+ {[%emt 0:00:27]} Kb7 {[%emt 0:01:30]} 33. Qe7+ {[%emt 0:00:25]} Kc8 {[%emt 0:00:30]} 34. Qxa7 {[%emt 0:00:36]} Bb7 {[%emt 0:00:00]} 35. Qc5+ {[%emt 0:00:21]} Bc6 {[%emt 0:01:00]} 36. h3 {[%emt 0:00:44]} Qh2 {[%emt 0:00:30]} 37. Qd6 {[%emt 0:00:24]} g5 {[%emt 0:00:30]} 38. c5 {[%emt 0:00:42]} gxf4 {[%emt 0:02:30]} 39. Ba6+ {[%emt 0:00:25]} Bb7 {[%emt 0:00:30]} 40. Bxb7+ {[%emt 0:00:24]} Nxb7 {[%emt 0:00:00]} 41. Qf8+ {[%emt 0:00:41]} Kc7 {[%emt 0:01:00]} 42. Qxf7+ {[%emt 0:00:20]} Kc6 {[%emt 0:01:30]} 43. Qg6+ {[%emt 0:00:35]} Kxc5 {[%emt 0:00:30]} 44. Qg5+ {[%emt 0:00:08]} Kc6 {[%emt 0:00:30]} 45. Kf3 {[%emt 0:00:43]} Qg1 {[%emt 0:00:30]} 46. Qxf4 {[%emt 0:00:05]} Nd6 {[%emt 0:01:30]} 47. Qa4+ {[%emt 0:00:52]} Kc7 {[%emt 0:00:00]} 48. Qa5+ {[%emt 0:00:15]} Kd7 {[%emt 0:00:00]} 49. Qa4+ {[%emt 0:00:02]} Kc7 {[%emt 0:00:30]} 50. Qa5+ {[%emt 0:00:51]} Kd7 {[%emt 0:00:30]} 51. Qa4+ {[%emt 0:00:01]} Kc7 {[%emt 0:01:30]} 1/2-1/2

[Event "Turkish Youth Championship 2024"]
[Site "Samsun"]
[Date "2024.05.21"]
[Round "5"]
[White "Ozmen, Sevket Mert"]
[Black "Balci, Ahmet Hakan"]
[Result "1-0"]
[ECO "B22"]
[WhiteElo "1749"]
[BlackElo "1563"]
[Annotator "NA RC"]
[PlyCount "175"]
[EventDate "2024.05.18"]
[EventType "swiss"]
[EventCountry "TUR"]
[SourceTitle "playchess.com"]
[Source "ChessBase"]
[SourceQuality "1"]
[TimeControl "5400+30"]

1. e4 {[%emt 0:01:00]} c5 {[%emt 0:01:00]} 2. c3 {[%emt 0:00:30]} d5 {[%emt 0:00:30]} 3. exd5 {[%emt 0:00:00]} Qxd5 {[%emt 0:00:00]} 4. d4 {[%emt 0:00:00]} cxd4 {[%emt 0:00:00]} 5. cxd4 {[%emt 0:00:30]} Nc6 {[%emt 0:00:30]} 6. Nf3 {[%emt 0:00:00]} Bg4 {[%emt 0:02:30]} 7. Be2 {[%emt 0:00:00]} e6 {[%emt 0:00:00]} 8. O-O {[%emt 0:00:30]} Nf6 {[%emt 0:00:00]} 9. h3 {[%emt 0:00:00]} Bh5 {[%emt 0:01:30]} 10. Nc3 {[%emt 0:00:00]} Qd7 {[%emt 0:00:00]} 11. Be3 {[%emt 0:04:30]} Bb4 {[%emt 0:02:00]} 12. Qb3 {[%emt 0:03:30]} Bxc3 {[%emt 0:00:30]} 13. bxc3 {[%emt 0:02:30]} O-O {[%emt 0:02:30]} 14. Rfd1 {[%emt 0:02:30]} Qc7 {[%emt 0:01:30]} 15. Rac1 {[%emt 0:06:30]} Nd5 {[%emt 0:01:30]} 16. Bg5 {[%emt 0:04:30]} Nf4 {[%emt 0:00:30]} 17. Bxf4 {[%emt 0:02:30]} Qxf4 {[%emt 0:00:30]} 18. Qxb7 {[%emt 0:00:30]} Rfc8 {[%emt 0:01:30]} 19. Qb2 {[%emt 0:06:30]} Rab8 {[%emt 0:03:30]} 20. Qd2 {[%emt 0:00:30]} Qd6 {[%emt 0:02:30]} 21. Ng5 {[%emt 0:09:30]} Bxe2 {[%emt 0:01:30]} 22. Qxe2 {[%emt 0:00:00]} Qf4 {[%emt 0:00:30]} 23. Nf3 {[%emt 0:03:00]} Ne7 {[%emt 0:01:30]} 24. Rc2 {[%emt 0:15:30]} Nd5 {[%emt 0:01:30]} 25. c4 {[%emt 0:04:30]} Nb4 {[%emt 0:02:30]} 26. Rb2 {[%emt 0:00:30]} Qc7 {[%emt 0:01:30]} 27. a3 {[%emt 0:02:30]} Nc6 {[%emt 0:01:30]} 28. Rxb8 {[%emt 0:03:30]} Nxb8 {[%emt 0:00:00]} 29. Nd2 {[%emt 0:08:30]} Qd6 {[%emt 0:01:00]} 30. Qd3 {[%emt 0:00:30]} Nc6 {[%emt 0:00:30]} 31. Ne4 {[%emt 0:01:54]} Qe7 {[%emt 0:02:30]} 32. d5 {[%emt 0:02:56]} exd5 {[%emt 0:00:30]} 33. cxd5 {[%emt 0:00:19]} Ne5 {[%emt 0:01:30]} 34. d6 {[%emt 0:00:23]} Qe6 {[%emt 0:05:30]} 35. Qd4 {[%emt 0:07:29]} Nd7 {[%emt 0:13:30]} 36. Qxa7 {[%emt 0:00:22]} h6 {[%emt 0:04:30]} 37. Qe3 {[%emt 0:08:02]} Re8 {[%emt 0:02:30]} 38. Rd4 {[%emt 0:01:58]} f5 {[%emt 0:02:30]} 39. Ng3 {[%emt 0:00:52]} Qxe3 {[%emt 0:01:30]} 40. fxe3 {[%emt 0:00:04]} Rxe3 {[%emt 0:00:30]} 41. Nxf5 {[%emt 0:00:36]} Rxa3 {[%emt 0:00:00]} 42. Re4 {[%emt 0:00:14]} Ra5 {[%emt 0:02:00]} 43. Re8+ {[%emt 0:01:49]} Kh7 {[%emt 0:01:30]} 44. Nxg7 {[%emt 0:00:17]} Kg6 {[%emt 0:01:30]} 45. Re7 {[%emt 0:00:36]} Ra7 {[%emt 0:00:30]} 46. Ne6 {[%emt 0:00:22]} Kf6 {[%emt 0:00:30]} 47. Nc7 {[%emt 0:00:42]} Ra1+ {[%emt 0:01:30]} 48. Kh2 {[%emt 0:00:01]} Nc5 {[%emt 0:00:30]} 49. Nd5+ {[%emt 0:00:39]} Kf5 {[%emt 0:01:30]} 50. d7 {[%emt 0:00:18]} Nxd7 {[%emt 0:00:30]} 51. Rxd7 {[%emt 0:00:02]} Re1 {[%emt 0:00:30]} 52. Rf7+ {[%emt 0:00:14]} Kg6 {[%emt 0:01:30]} 53. Rf3 {[%emt 0:00:07]} Re5 {[%emt 0:00:30]} 54. Ne3 {[%emt 0:00:25]} Ra5 {[%emt 0:01:30]} 55. Ng4 {[%emt 0:00:16]} h5 {[%emt 0:00:30]} 56. Ne3 {[%emt 0:00:07]} Rb5 {[%emt 0:00:30]} 57. g4 {[%emt 0:00:33]} hxg4 {[%emt 0:00:30]} 58. hxg4 {[%emt 0:00:06]} Rb2+ {[%emt 0:03:30]} 59. Kg3 {[%emt 0:00:03]} Rb1 {[%emt 0:00:30]} 60. Ng2 {[%emt 0:00:19]} Rg1 {[%emt 0:00:30]} 61. Kh2 {[%emt 0:00:57]} Ra1 {[%emt 0:01:30]} 62. Ne3 {[%emt 0:00:25]} Ra4 {[%emt 0:00:30]} 63. Kg3 {[%emt 0:00:37]} Re4 {[%emt 0:01:30]} 64. Ng2 {[%emt 0:00:11]} Kg5 {[%emt 0:00:30]} 65. Rf5+ {[%emt 0:00:06]} Kh6 {[%emt 0:00:00]} 66. Kh4 {[%emt 0:00:16]} Re2 {[%emt 0:01:00]} 67. Rh5+ {[%emt 0:00:35]} Kg7 {[%emt 0:00:30]} 68. Nf4 {[%emt 0:00:09]} Re4 {[%emt 0:00:30]} 69. Rf5 {[%emt 0:00:39]} Kh6 {[%emt 0:00:30]} 70. Rf6+ {[%emt 0:00:30]} Kh7 {[%emt 0:00:30]} 71. Kg5 {[%emt 0:00:06]} Re7 {[%emt 0:00:30]} 72. Nh5 {[%emt 0:00:46]} Ra7 {[%emt 0:01:30]} 73. Rh6+ {[%emt 0:00:21]} Kg8 {[%emt 0:00:30]} 74. Nf6+ {[%emt 0:00:07]} Kg7 {[%emt 0:00:00]} 75. Rh7+ {[%emt 0:00:54]} Kf8 {[%emt 0:00:00]} 76. Kg6 {[%emt 0:00:21]} Rg7+ {[%emt 0:00:00]} 77. Kh5 {[%emt 0:00:52]} Rg5+ {[%emt 0:01:00]} 78. Kh4 {[%emt 0:00:01]} Rg6 {[%emt 0:00:30]} 79. Nh5 {[%emt 0:00:30]} Kg8 {[%emt 0:00:00]} 80. Rb7 {[%emt 0:00:10]} Rc6 {[%emt 0:01:00]} 81. g5 {[%emt 0:00:07]} Rc4+ {[%emt 0:00:30]} 82. Kg3 {[%emt 0:00:04]} Rc5 {[%emt 0:00:00]} 83. Kg4 {[%emt 0:00:02]} Ra5 {[%emt 0:00:00]} 84. g6 {[%emt 0:00:32]} Ra4+ {[%emt 0:00:30]} 85. Kg5 {[%emt 0:03:13]} Kf8 {[%emt 0:00:30]} 86. Rf7+ {[%emt 0:00:16]} Ke8 {[%emt 0:00:30]} 87. Nf6+ {[%emt 0:00:36]} Kd8 {[%emt 0:00:30]} 88. g7 {[%emt 0:00:00]} 1-0

[Event "Turkish Youth Championship 2024"]
[Site "Samsun"]
[Date "2024.05.21"]
[Round "5"]
[White "Cagatay, Mehmet Kayra"]
[Black "Cakir, Kerem Cagri"]
[Result "1-0"]
[ECO "C54"]
[WhiteElo "1717"]
[BlackElo "1585"]
[Annotator "NA RC"]
[PlyCount "97"]
[EventDate "2024.05.18"]
[EventType "swiss"]
[EventCountry "TUR"]
[SourceTitle "playchess.com"]
[Source "ChessBase"]
[SourceQuality "1"]
[TimeControl "5400+30"]

1. e4 {[%emt 0:01:00]} e5 {[%emt 0:01:00]} 2. Nf3 {[%emt 0:00:30]} Nc6 {[%emt 0:00:30]} 3. Bc4 {[%emt 0:00:30]} Bc5 {[%emt 0:00:00]} 4. c3 {[%emt 0:00:30]} Nf6 {[%emt 0:00:00]} 5. d3 {[%emt 0:00:00]} h6 {[%emt 0:00:00]} 6. O-O {[%emt 0:02:00]} d6 {[%emt 0:00:00]} 7. b4 {[%emt 0:01:30]} Bb6 {[%emt 0:00:30]} 8. a4 {[%emt 0:00:00]} a5 {[%emt 0:02:30]} 9. b5 {[%emt 0:00:00]} Ne7 {[%emt 0:00:30]} 10. Re1 {[%emt 0:05:30]} Be6 {[%emt 0:02:30]} 11. Nbd2 {[%emt 0:01:30]} Ng6 {[%emt 0:03:30]} 12. Bxe6 {[%emt 0:05:30]} fxe6 {[%emt 0:00:30]} 13. Nc4 {[%emt 0:00:30]} O-O {[%emt 0:03:30]} 14. Qb3 {[%emt 0:05:30]} Qe7 {[%emt 0:03:30]} 15. Nxb6 {[%emt 0:01:30]} cxb6 {[%emt 0:00:30]} 16. Be3 {[%emt 0:00:30]} Nf4 {[%emt 0:06:30]} 17. Bxf4 {[%emt 0:29:30]} exf4 {[%emt 0:00:30]} 18. d4 {[%emt 0:02:30]} Nh5 {[%emt 0:14:30]} 19. e5 {[%emt 0:08:30]} d5 {[%emt 0:01:30]} 20. c4 {[%emt 0:00:00]} dxc4 {[%emt 0:00:00]} 21. Qxc4 {[%emt 0:00:00]} Rac8 {[%emt 0:01:00]} 22. Qd3 {[%emt 0:00:30]} Rcd8 {[%emt 0:08:30]} 23. Rac1 {[%emt 0:00:30]} Qf7 {[%emt 0:03:30]} 24. Rc4 {[%emt 0:05:30]} Rd7 {[%emt 0:07:30]} 25. Rec1 {[%emt 0:03:30]} Rfd8 {[%emt 0:02:30]} 26. h3 {[%emt 0:05:30]} g5 {[%emt 0:00:30]} 27. Nd2 {[%emt 0:01:30]} Ng7 {[%emt 0:11:30]} 28. Rc8 {[%emt 0:03:47]} Qe8 {[%emt 0:05:30]} 29. R8c4 {[%emt 0:04:39]} Qf7 {[%emt 0:01:30]} 30. Ne4 {[%emt 0:01:43]} Ne8 {[%emt 0:00:30]} 31. Qc3 {[%emt 0:06:45]} Qh7 {[%emt 0:01:44]} 32. f3 {[%emt 0:00:52]} Qe7 {[%emt 0:01:14]} 33. Qd3 {[%emt 0:02:25]} Qh7 {[%emt 0:00:30]} 34. Rc8 {[%emt 0:01:03]} Qe7 {[%emt 0:03:12]} 35. Rxd8 {[%emt 0:01:15]} Qxd8 {[%emt 0:04:56]} 36. Rc4 {[%emt 0:00:18]} Kh8 {[%emt 0:01:16]} 37. Qc3 {[%emt 0:00:51]} Qe7 {[%emt 0:01:21]} 38. Rc8 {[%emt 0:01:04]} Kg7 {[%emt 0:00:15]} 39. Kh2 {[%emt 0:00:30]} Kf7 {[%emt 0:01:08]} 40. Qd3 {[%emt 0:00:25]} Kg7 {[%emt 0:00:11]} 41. Rxe8 {[%emt 0:00:25]} Qxe8 {[%emt 0:00:35]} 42. Nf6 {[%emt 0:00:03]} Qf7 {[%emt 0:01:13]} 43. Qh7+ {[%emt 0:00:43]} Kf8 {[%emt 0:00:11]} 44. Nxd7+ {[%emt 0:00:00]} Ke8 {[%emt 0:00:39]} 45. Qxf7+ {[%emt 0:00:00]} Kxf7 {[%emt 0:00:06]} 46. Nxb6 {[%emt 0:00:00]} Ke7 {[%emt 0:00:24]} 47. h4 {[%emt 0:00:00]} Kd8 {[%emt 0:00:00]} 48. hxg5 {[%emt 0:00:18]} hxg5 {[%emt 0:00:00]} 49. Kh3 {[%emt 0:00:00]} 1-0